bitfinex-derivatives/quotes_SOLF0:USTF0_20230105
["timestamp","ask_amount","ask_price","bid_price","bid_amount"]
[1672896647979,7.46,13.353,13.349,37.465]
[1672896648192,7.46,13.35,13.348,10.06990433]
[1672896648401,14.94,13.351,13.348,10.0]
[1672896648816,52.401,13.351,13.348,37.468]
[1672896649137,52.401,13.351,13.346,10.0]
[1672896650082,52.401,13.351,13.348,10.0]
[1672896651763,37.461,13.351,13.348,10.0]
[1672896651978,37.461,13.351,13.348,47.468]
[1672896652288,52.348,13.352,13.348,47.468]
[1672896652499,14.9652881,13.354,13.348,47.468]
[1672896655439,0.0652881,13.354,13.348,47.468]
[1672896656071,0.0052881,13.354,13.348,47.468]
[1672896656387,2.76307664,13.354,13.348,47.468]
[1672896656592,0.0052881,13.354,13.348,47.468]
[1672896659851,14.9352881,13.354,13.348,37.468]
[1672896660797,2.75790176,13.353,13.348,37.468]
[1672896661956,2.75790176,13.353,13.349,10.0]
[1672896662164,0.0052881,13.354,13.35,112.387]
[1672896662479,14.89,13.356,13.351,10.0]
[1672896662691,14.89,13.356,13.352,37.456]
[1672896662900,14.89,13.356,13.353,10.0]
[1672896663845,14.89,13.356,13.351,10.0]
[1672896664054,52.336,13.356,13.352,37.456]
[1672896666465,52.336,13.356,13.35,37.462]
[1672896666681,14.86,13.354,13.349,37.52936889]
[1672896666890,37.456,13.353,13.349,37.52936889]
[1672896667095,37.456,13.353,13.349,37.464]
[1672896668361,37.456,13.353,13.349,37.3723223]
[1672896669305,37.456,13.353,13.346,0.06094002]
[1672896669518,14.93,13.352,13.346,0.06094002]
[1672896669833,37.462,13.351,13.346,0.06094002]
[1672896670145,37.462,13.351,13.346,37.53394002]
[1672896672452,37.462,13.351,13.346,0.06094002]
[1672896673506,14.93,13.352,13.346,0.06094002]
[1672896674454,37.461,13.351,13.346,0.06094002]
[1672896675925,37.461,13.351,13.346,37.53494002]
[1672896677080,37.461,13.351,13.346,0.06094002]
[1672896677289,14.86,13.347,13.346,0.06094002]
[1672896677499,52.331,13.347,13.342,0.07101059]
[1672896677705,52.331,13.347,13.34,10.06909324]
[1672896678131,14.81,13.345,13.34,0.06909324]
[1672896678339,52.288,13.345,13.341,37.487]
[1672896678656,14.81,13.345,13.341,37.487]
[1672896679497,52.287,13.345,13.341,37.487]
[1672896680018,52.287,13.345,13.34,0.06909324]
[1672896680444,14.93,13.343,13.34,0.06909324]
[1672896680653,37.485,13.342,13.338,37.496]
[1672896680860,37.485,13.342,13.338,37.3884915]
[1672896681071,52.413,13.343,13.338,37.3884915]
[1672896681282,14.93,13.343,13.338,37.3884915]
[1672896682959,37.487,13.342,13.338,37.3884915]
[1672896684128,14.93,13.343,13.338,37.3884915]
[1672896685382,14.93,13.344,13.338,47.3884915]
[1672896685593,0.062349,13.345,13.338,47.3884915]
[1672896686011,0.062349,13.345,13.339,10.0]
[1672896686221,0.062349,13.345,13.34,37.489]
[1672896686432,0.062349,13.345,13.341,10.0]
[1672896686642,89.89856869,13.348,13.341,10.0]
[1672896687906,37.475,13.346,13.342,37.485]
[1672896688112,37.475,13.346,13.343,10.0]
[1672896688632,37.475,13.346,13.342,37.485]
[1672896688847,37.475,13.346,13.343,37.48]
[1672896689057,37.475,13.346,13.344,10.0]
[1672896689274,37.472,13.347,13.344,10.0]
[1672896689584,14.89,13.348,13.344,37.477]
[1672896689902,14.89,13.348,13.345,10.0]
[1672896690110,52.359,13.348,13.345,10.0]
[1672896690324,52.359,13.348,13.342,10.0]
[1672896691899,52.359,13.348,13.343,37.481]
[1672896692108,52.359,13.348,13.344,10.0]
[1672896692948,52.359,13.348,13.342,10.0]
[1672896693996,52.359,13.348,13.345,10.0]
[1672896695573,52.359,13.348,13.342,10.0]
[1672896695783,52.359,13.348,13.343,37.48]
[1672896695993,52.359,13.348,13.344,10.0]
[1672896696938,52.359,13.348,13.345,37.476]
[1672896697455,52.359,13.348,13.344,47.479]
[1672896697669,52.359,13.348,13.344,37.479]
[1672896698301,14.89,13.346,13.34,0.06334106]
[1672896698513,52.409,13.345,13.34,0.06334106]
[1672896699773,52.407,13.345,13.341,37.488]
[1672896704084,52.407,13.345,13.34,37.55234106]
[1672896704291,52.407,13.345,13.34,0.06334106]
[1672896704608,14.93,13.345,13.34,0.06334106]
[1672896705975,52.408,13.345,13.341,37.487]
[1672896707657,52.408,13.345,13.341,37.37831325]
[1672896708593,37.478,13.345,13.341,37.37831325]
[1672896710285,44.888,13.345,13.341,37.37831325]
[1672896710706,44.888,13.345,13.34,0.06334106]
[1672896710919,44.888,13.345,13.34,37.55434106]
[1672896715537,45.01069111,13.347,13.341,10.0]
[1672896715743,0.06869111,13.347,13.342,37.483]
[1672896716062,0.06869111,13.347,13.343,10.0]
[1672896716273,44.881,13.348,13.344,37.479]
[1672896718369,7.41,13.348,13.344,37.479]
[1672896719318,7.41,13.348,13.344,47.479]
[1672896719733,0.0001,13.348,13.345,10.0]
[1672896719945,0.0001,13.348,13.346,37.474]
[1672896720156,0.0001,13.348,13.347,10.0]
[1672896721951,0.0001,13.348,13.347,47.471]
[1672896723208,0.0001,13.348,13.347,37.471]
[1672896728669,7.53924455,13.35,13.347,37.471]
[1672896728884,7.47,13.35,13.347,37.471]
[1672896729198,0.00255247,13.353,13.349,37.464]
[1672896729410,7.47,13.355,13.35,10.0]
[1672896730871,7.47,13.355,13.351,37.459]
[1672896731090,7.47,13.355,13.352,10.0]
[1672896731506,7.47,13.355,13.35,10.0]
[1672896733286,7.47,13.355,13.349,37.464]
[1672896733496,7.47,13.355,13.351,37.459]
[1672896733707,7.47,13.355,13.352,10.0]
[1672896734344,7.47,13.355,13.353,37.454]
[1672896736023,7.47,13.355,13.352,37.457]
[1672896736766,44.921,13.355,13.351,37.459]
[1672896737291,44.921,13.355,13.348,10.06453744]
[1672896737292,7.41,13.352,13.348,0.06453744]
[1672896737500,37.461,13.351,13.347,37.47]
[1672896737709,37.461,13.351,13.348,10.0]
[1672896738128,44.868,13.352,13.348,47.467]
[1672896740123,44.868,13.352,13.347,10.0]
[1672896740334,44.868,13.352,13.345,0.06158171]
[1672896740653,7.47,13.348,13.345,0.06158171]
[1672896740866,7.47,13.348,13.345,37.477]
[1672896741388,44.939,13.348,13.345,37.477]
[1672896741599,0.17541455,13.345,13.342,0.06148935]
[1672896741804,7.45,13.344,13.342,37.484]
[1672896742019,7.45,13.344,13.34,10.0]
[1672896742332,7.41,13.341,13.339,0.06474757]
[1672896742534,7.47,13.34,13.335,37.56857884]
[1672896742742,7.41,13.338,13.335,37.503]
[1672896742955,7.47,13.34,13.335,37.503]
[1672896744638,7.51245718,13.342,13.335,37.503]
[1672896745062,37.489,13.341,13.335,37.503]
[1672896745380,7.51245718,13.342,13.335,37.503]
[1672896746743,0.06245718,13.342,13.336,10.0]
[1672896746952,0.06245718,13.342,13.337,37.497]
[1672896747367,0.06245718,13.342,13.338,10.0]
[1672896747582,7.71345078,13.345,13.338,10.0]
[1672896749057,7.71345078,13.345,13.339,37.493]
[1672896749371,7.71345078,13.345,13.34,10.0]
[1672896749686,7.71345078,13.345,13.338,10.0]
[1672896749893,7.71345078,13.345,13.337,37.55986411]
[1672896750522,45.19145078,13.345,13.34,37.491]
[1672896750743,7.71345078,13.345,13.34,37.491]
[1672896750940,7.71345078,13.345,13.341,10.0]
[1672896751153,7.64541455,13.345,13.341,10.0]
[1672896751367,7.64541455,13.345,13.342,37.485]
[1672896751580,7.42,13.343,13.337,0.06286411]
[1672896751783,7.42,13.34,13.337,0.06286411]
[1672896751993,7.42,13.34,13.334,10.06259223]
[1672896752205,44.913,13.34,13.334,10.0]
[1672896752522,7.42,13.34,13.334,10.0]
[1672896752941,14.96,13.341,13.334,10.0]
[1672896753775,52.449,13.341,13.334,47.506]
[1672896754202,52.449,13.341,13.334,10.0]
[1672896754936,14.96,13.341,13.334,47.507]
[1672896755465,52.449,13.341,13.334,10.0]
[1672896757042,52.449,13.341,13.334,37.507]
[1672896757355,52.449,13.341,13.335,10.0]
[1672896757566,52.449,13.341,13.336,37.502]
[1672896757776,52.449,13.341,13.337,10.0]
[1672896758506,52.449,13.341,13.335,47.503]
[1672896758719,52.449,13.341,13.335,37.503]
[1672896759247,52.449,13.341,13.335,37.41901551]
[1672896759459,52.449,13.341,13.334,10.0]
[1672896760302,52.449,13.341,13.332,10.06561351]
[1672896760824,52.449,13.341,13.332,0.06561351]
[1672896761142,52.449,13.341,13.334,37.506]
[1672896762401,52.449,13.341,13.333,37.51]
[1672896762715,52.449,13.341,13.332,0.06561351]
[1672896763557,52.449,13.341,13.333,37.511]
[1672896763763,52.449,13.341,13.334,10.0]
[1672896764290,14.96,13.337,13.332,0.06561351]
[1672896764604,37.508,13.334,13.332,0.06561351]
[1672896764816,37.508,13.334,13.329,37.521]
[1672896765019,37.508,13.334,13.33,10.0]
[1672896765227,37.508,13.334,13.33,47.517]
[1672896765761,14.96,13.335,13.33,37.517]
[1672896766174,14.96,13.335,13.329,37.521]
[1672896766392,37.51,13.334,13.33,10.0]
[1672896766809,37.51,13.334,13.328,0.0712392]
[1672896767545,14.96,13.335,13.328,0.0712392]
[1672896768173,7.49,13.334,13.328,0.0712392]
[1672896768911,7.49,13.331,13.328,0.0712392]
[1672896769120,7.49,13.333,13.325,0.0660524]
[1672896769330,0.06325039,13.334,13.328,37.524]
[1672896769540,0.07038758,13.336,13.329,10.0]
[1672896769955,37.507,13.335,13.331,37.516]
[1672896770380,37.507,13.335,13.329,85.042]
[1672896770381,37.507,13.335,13.328,10.06588352]
[1672896771750,37.57338758,13.336,13.331,10.0]
[1672896772169,0.07038758,13.336,13.332,37.512]
[1672896772375,37.501,13.337,13.333,10.0]
[1672896773537,37.501,13.337,13.333,9.89578321]
[1672896773962,37.501,13.337,13.333,47.40478321]
[1672896774165,37.501,13.337,13.333,37.509]
[1672896776374,37.501,13.337,13.331,37.515]
[1672896776585,112.5,13.337,13.332,10.0]
[1672896777218,112.5,13.337,13.332,37.513]
[1672896777735,7.49,13.334,13.33,0.06985123]
[1672896777952,7.49,13.333,13.324,49.95845811]
[1672896778372,37.51,13.334,13.325,10.0]
[1672896778584,37.51,13.334,13.33,37.519]
[1672896778793,37.51,13.334,13.325,10.0]
[1672896778794,37.51,13.334,13.327,10.0]
[1672896779424,37.51,13.334,13.328,37.524]
[1672896779634,37.51,13.334,13.329,10.0]
[1672896779950,37.51,13.334,13.327,10.0]
[1672896780266,37.51,13.334,13.329,37.522]
[1672896783525,112.526,13.334,13.326,0.06318941]
[1672896784892,112.526,13.334,13.327,37.527]
[1672896785101,112.526,13.334,13.328,10.0]
[1672896786147,112.526,13.334,13.327,10.0]
[1672896788463,112.526,13.334,13.326,37.59218941]
[1672896788673,7.49,13.333,13.326,37.59218941]
[1672896788883,37.517,13.331,13.326,37.59218941]
[1672896790251,37.517,13.331,13.326,37.46769002]
[1672896792774,37.517,13.331,13.324,0.0636968]
[1672896793611,112.55,13.331,13.324,0.0636968]
[1672896793822,7.49,13.33,13.324,0.0636968]
[1672896794138,112.568,13.329,13.324,37.5986968]
[1672896794340,112.568,13.329,13.324,0.0636968]
[1672896795186,37.524,13.329,13.324,37.5986968]
[1672896796343,7.49,13.33,13.324,112.6716968]
[1672896796977,37.52,13.33,13.325,10.0]
[1672896797188,37.52,13.33,13.326,37.529]
[1672896797397,0.06682781,13.332,13.327,10.0]
[1672896797711,0.06682781,13.332,13.327,47.526]
[1672896798663,2.781e-05,13.332,13.327,47.526]
[1672896799295,2.781e-05,13.332,13.327,160.11]
[1672896800238,2.781e-05,13.332,13.327,167.6]
[1672896800968,2.781e-05,13.332,13.327,160.11]
[1672896803182,2.781e-05,13.332,13.328,7.49]
[1672896803387,2.781e-05,13.332,13.329,122.564]
[1672896803603,0.06597722,13.335,13.332,0.09182165]
[1672896803809,0.06042634,13.338,13.333,112.533]
[1672896804021,0.06042634,13.338,13.334,10.0]
[1672896804232,7.49,13.34,13.334,10.0]
[1672896804439,7.49,13.34,13.335,112.513]
[1672896804648,7.49,13.34,13.336,10.0]
[1672896805915,7.49,13.34,13.337,37.499]
[1672896806125,7.49,13.34,13.338,10.0]
[1672896806757,7.49,13.34,13.339,37.494]
[1672896808754,7.49,13.34,13.338,37.496]
[1672896809068,7.49,13.34,13.339,10.0]
[1672896809280,7.49,13.34,13.336,85.004]
[1672896809484,7.49,13.34,13.337,37.499]
[1672896809804,7.49,13.34,13.338,10.0]
[1672896810536,7.49,13.34,13.338,47.496]
[1672896810742,7.49,13.34,13.338,37.496]
[1672896813591,7.49,13.34,13.338,37.43284967]
[1672896813898,0.07025065,13.344,13.339,10.0]
[1672896814113,0.07025065,13.344,13.34,37.49]
[1672896814325,0.0690471,13.347,13.341,10.0]
[1672896814524,37.5410471,13.347,13.341,10.0]
[1672896814950,37.5410471,13.347,13.342,37.483]
[1672896815161,37.5410471,13.347,13.343,10.0]
[1672896815372,37.472,13.347,13.343,10.0]
[1672896816429,7.42,13.346,13.341,10.0]
[1672896816639,7.42,13.346,13.344,37.479]
[1672896816845,7.42,13.346,13.345,10.0]
[1672896818006,7.42,13.346,13.344,37.478]
[1672896821051,7.42,13.346,13.342,74.967]
[1672896821257,7.42,13.346,13.339,75.04781591]
[1672896821470,7.49,13.345,13.339,75.04781591]
[1672896823049,7.49,13.345,13.341,37.488]
[1672896823259,7.49,13.345,13.342,10.0]
[1672896823786,7.49,13.345,13.34,10.0]
[1672896824522,7.49,13.345,13.342,37.484]
[1672896824731,7.49,13.345,13.343,10.0]
[1672896825158,7.49,13.345,13.343,47.48]
[1672896825465,7.49,13.345,13.343,37.48]
[1672896826515,7.42,13.346,13.343,37.48]
[1672896829877,7.498369,13.349,13.345,37.476]
[1672896830088,7.49,13.349,13.346,10.0]
[1672896831668,7.49,13.349,13.346,47.474]
[1672896832192,7.49,13.348,13.344,10.0]
[1672896832394,7.49,13.348,13.346,10.0]
[1672896833245,7.49,13.348,13.346,37.474]
[1672896834714,7.49,13.347,13.344,37.479]
[1672896835869,44.962,13.347,13.344,37.479]
[1672896836606,44.962,13.347,13.343,37.55027688]
[1672896836808,7.49,13.344,13.34,0.06017854]
[1672896837023,7.49,13.341,13.337,0.06410845]
[1672896837233,7.49,13.339,13.335,10.0]
[1672896837863,7.49,13.339,13.334,112.58706577]
[1672896838077,7.49,13.339,13.336,37.501]
[1672896838284,7.49,13.339,13.337,10.0]
[1672896838703,7.49,13.339,13.337,47.499]
[1672896839862,7.49,13.339,13.337,37.499]
[1672896841959,7.49,13.339,13.335,10.0]
[1672896842171,7.49,13.339,13.334,0.06706577]
[1672896842705,7.49,13.339,13.335,112.516]
[1672896843009,7.49,13.339,13.336,10.0]
[1672896843224,14.96,13.34,13.337,37.499]
[1672896843643,14.96,13.34,13.337,37.36038525]
[1672896844906,52.451,13.34,13.337,37.36038525]
[1672896845539,52.451,13.34,13.336,37.502]
[1672896845854,14.96,13.34,13.334,0.06706577]
[1672896846273,14.96,13.34,13.336,37.501]
[1672896846905,52.451,13.34,13.336,37.501]
[1672896847115,14.96,13.34,13.336,37.501]
[1672896848691,15.02513895,13.341,13.336,37.501]
[1672896849637,52.51313895,13.341,13.336,37.501]
[1672896850161,15.02513895,13.341,13.336,37.501]
[1672896850578,15.02513895,13.341,13.336,112.506]
[1672896852473,52.51413895,13.341,13.336,37.501]
[1672896855314,0.06513895,13.341,13.337,10.0]
[1672896855521,15.02125835,13.344,13.338,37.496]
[1672896855731,15.02125835,13.344,13.339,10.0]
[1672896855943,15.02125835,13.344,13.34,37.49]
[1672896856256,14.96,13.344,13.341,10.0]
[1672896857088,14.96,13.344,13.341,47.486]
[1672896858357,14.96,13.344,13.341,47.25256057]
[1672896858882,14.96,13.344,13.339,10.0]
[1672896859506,14.96,13.344,13.341,37.488]
[1672896859829,14.96,13.344,13.342,10.0]
[1672896860984,14.96,13.344,13.343,37.483]
[1672896861196,14.85,13.345,13.343,37.483]
[1672896862350,37.53418938,13.347,13.343,37.483]
[1672896862561,37.472,13.347,13.343,37.483]
[1672896862879,37.475,13.346,13.342,10.0]
[1672896863188,14.85,13.348,13.342,10.0]
[1672896863936,37.473,13.347,13.343,37.482]
[1672896864249,37.473,13.347,13.344,10.0]
[1672896864452,14.85,13.348,13.344,47.478]
[1672896864667,14.74949295,13.348,13.344,47.478]
[1672896865827,14.96,13.349,13.344,47.478]
[1672896866456,0.06306746,13.35,13.344,47.478]
[1672896866982,37.52806746,13.35,13.344,47.478]
[1672896867197,40.28654765,13.35,13.344,47.478]
[1672896867614,37.52806746,13.35,13.344,47.478]
[1672896872662,37.52806746,13.35,13.344,37.478]
[1672896874549,14.96,13.348,13.344,37.478]
[1672896874760,52.431,13.348,13.344,37.478]
[1672896878337,52.431,13.348,13.344,37.41563949]
[1672896879283,52.431,13.348,13.342,0.06070716]
[1672896879493,52.431,13.348,13.343,37.482]
[1672896884015,52.431,13.348,13.342,0.06070716]
[1672896884329,14.85,13.346,13.342,0.06070716]
[1672896884538,37.478,13.345,13.341,37.486]
[1672896886957,14.93,13.344,13.339,0.06642591]
[1672896887273,14.96,13.342,13.339,0.06642591]
[1672896887487,14.96,13.342,13.332,10.0]
[1672896887699,52.50882669,13.342,13.336,37.502]
[1672896888434,52.50882669,13.342,13.335,37.502]
[1672896888644,52.50882669,13.342,13.336,10.0]
[1672896889802,52.50882669,13.342,13.336,47.502]
[1672896890741,52.50882669,13.342,13.336,47.2797383]
[1672896893372,37.492,13.34,13.336,47.2797383]
[1672896895474,37.492,13.34,13.336,37.502]
[1672896896209,44.909,13.341,13.336,37.502]
[1672896898944,0.06282669,13.342,13.337,10.0]
[1672896899158,0.06282669,13.342,13.338,37.495]
[1672896899470,0.06594793,13.345,13.339,10.0]
[1672896900101,0.06594793,13.345,13.34,37.489]
[1672896900417,0.06594793,13.345,13.341,10.0]
[1672896900627,7.41,13.346,13.341,10.0]
[1672896900833,7.41,13.346,13.342,37.485]
[1672896901886,44.884,13.346,13.342,37.485]
[1672896902513,7.41,13.346,13.342,37.485]
[1672896902728,7.41,13.346,13.342,112.456]
[1672896903359,7.50247764,13.348,13.342,112.456]
[1672896903986,7.50247764,13.348,13.343,10.0]
[1672896904198,7.50247764,13.348,13.344,37.478]
[1672896904408,7.44,13.348,13.345,10.0]
[1672896904822,37.466,13.349,13.345,10.0]
[1672896905249,44.903,13.35,13.346,37.474]
[1672896905457,44.903,13.35,13.347,10.0]
[1672896906407,44.903,13.35,13.345,10.0]
[1672896907877,7.44,13.35,13.345,84.954]
[1672896908717,7.44,13.35,13.345,10.0]
[1672896909455,37.466,13.349,13.345,47.476]
[1672896909982,37.466,13.349,13.345,37.476]
[1672896911867,44.904,13.35,13.345,37.476]
[1672896912605,7.44,13.35,13.345,37.476]
[1672896913965,44.903,13.35,13.345,37.476]
[1672896916808,7.44,13.35,13.345,37.476]
[1672896917122,7.44,13.35,13.345,47.476]
[1672896917334,7.44,13.35,13.347,37.471]
[1672896917543,7.44,13.35,13.348,10.0]
[1672896918803,7.42,13.351,13.348,10.0]
[1672896919430,7.42,13.351,13.346,10.0]
[1672896919961,44.881,13.351,13.348,37.469]
[1672896920276,44.881,13.351,13.349,10.0]
[1672896920596,2.75846595,13.35,13.349,10.0]
[1672896921644,2.75846595,13.35,13.348,37.469]
[1672896923219,37.458,13.352,13.348,37.469]
[1672896923424,7.42,13.353,13.348,37.469]
[1672896923634,0.06310438,13.354,13.349,10.0]
[1672896923848,0.06310438,13.354,13.35,37.462]
[1672896924058,7.48,13.357,13.351,10.0]
[1672896924479,7.48,13.357,13.352,37.455]
[1672896924691,7.48,13.357,13.353,10.0]
[1672896925005,7.48,13.357,13.353,47.452]
[1672896925216,0.06254974,13.36,13.353,47.452]
[1672896925217,7.48,13.358,13.353,47.452]
[1672896925426,7.48,13.358,13.353,37.452]
[1672896925953,7.48,13.358,13.353,112.362]
[1672896926160,7.48,13.358,13.354,10.0]
[1672896926365,7.34576673,13.358,13.355,37.448]
[1672896926577,7.44,13.357,13.354,10.0]
[1672896927001,7.44,13.357,13.354,47.449]
[1672896927420,7.48,13.359,13.354,47.449]
[1672896927738,2.75688626,13.358,13.354,47.449]
[1672896930265,40.19788626,13.358,13.354,47.449]
[1672896930472,2.75688626,13.358,13.354,47.449]
[1672896934672,2.819436,13.36,13.354,47.449]
[1672896936558,10.239436,13.36,13.354,37.449]
[1672896936982,7.44,13.358,13.354,37.449]
[1672896937497,2.75688626,13.357,13.354,37.449]
[1672896937823,7.44,13.358,13.354,37.449]
[1672896940763,44.881,13.358,13.354,37.449]
[1672896940973,7.42,13.356,13.353,37.454]
[1672896941393,7.42,13.356,13.353,37.32879481]
[1672896941605,7.42,13.356,13.352,37.456]
[1672896942973,44.866,13.356,13.352,37.456]
[1672896953702,44.866,13.356,13.352,37.37809264]
[1672896958641,37.446,13.356,13.352,37.37809264]
[1672896959272,37.446,13.356,13.35,0.06552205]
[1672896959589,44.924,13.357,13.35,0.06552205]
[1672896959799,7.48,13.357,13.35,0.06552205]
[1672896961060,37.446,13.356,13.351,37.459]
[1672896961271,37.446,13.356,13.352,10.0]
[1672896961481,37.446,13.356,13.352,47.456]
[1672896962008,37.446,13.356,13.352,37.456]
[1672896963475,7.48,13.357,13.352,37.456]
[1672896963795,44.924,13.357,13.352,37.456]
[1672896966630,44.924,13.357,13.352,37.26755105]
[1672896967782,44.924,13.357,13.351,37.459]
[1672896968101,37.46,13.351,13.343,10.0]
[1672896968312,7.44,13.35,13.343,10.0]
[1672896968624,7.44,13.35,13.348,37.466]
[1672896970623,7.44,13.35,13.349,10.0]
[1672896970827,7.44,13.353,13.349,47.466]
[1672896975247,7.44,13.353,13.349,37.466]
[1672896975460,44.895,13.353,13.349,37.466]
[1672896976933,7.48,13.35,13.346,0.06606953]
[1672896977242,7.48,13.35,13.343,10.06495829]
[1672896977457,2.75795122,13.352,13.346,37.473]
[1672896977458,7.54508037,13.351,13.346,37.473]
[1672896977667,7.5473392,13.353,13.347,10.0]
[1672896978817,3.92e-05,13.353,13.348,112.401]
[1672896979025,3.92e-05,13.353,13.349,10.0]
[1672896979235,7.44,13.357,13.349,10.0]
[1672896981037,7.44,13.357,13.351,112.377]
[1672896981244,7.44,13.357,13.352,10.0]
[1672896982086,0.06890235,13.358,13.353,37.453]
[1672896982295,0.06890235,13.358,13.354,10.0]
[1672896982507,7.48,13.359,13.354,10.0]
[1672896982923,7.48,13.359,13.355,37.448]
[1672896983133,7.45,13.36,13.356,10.0]
[1672896984293,7.45,13.36,13.357,37.443]
[1672896984506,7.45,13.36,13.358,10.0]
[1672896985764,37.434,13.361,13.358,10.0]
[1672896985971,37.434,13.361,13.358,47.44]
[1672896986181,2.7564883,13.36,13.358,47.44]
[1672896986388,2.7564883,13.36,13.358,10.0]
[1672896986711,2.7564883,13.36,13.356,10.0]
[1672896986921,2.7564883,13.361,13.356,10.0]
[1672896988070,40.1894883,13.361,13.358,37.44]
[1672896988281,40.1894883,13.361,13.359,10.0]
[1672896988706,2.7564883,13.36,13.359,10.0]
[1672896988910,2.7564883,13.36,13.358,37.44]
[1672896991234,40.1914883,13.36,13.357,37.443]
[1672896991447,47.6114883,13.36,13.355,10.0]
[1672896991761,47.6114883,13.36,13.354,10.0]
[1672896991966,2.7564883,13.359,13.354,47.451]
[1672896992176,37.442,13.358,13.354,47.451]
[1672896992493,37.442,13.358,13.354,47.22175131]
[1672896993546,37.439,13.359,13.354,47.22175131]
[1672896993960,7.42,13.36,13.354,47.22175131]
[1672896994493,2.75650752,13.359,13.354,47.22175131]
[1672896997006,2.75650752,13.359,13.354,37.451]
[1672896999637,2.75650752,13.359,13.354,47.451]
[1672897000789,2.75650752,13.359,13.355,10.0]
[1672897001005,2.75650752,13.359,13.356,37.446]
[1672897001216,2.75650752,13.359,13.357,10.0]
[1672897001738,2.75650752,13.36,13.358,37.44]
[1672897002154,2.75650752,13.361,13.358,37.44]
[1672897002367,2.75650752,13.361,13.359,10.0]
[1672897002574,0.06432292,13.364,13.359,10.0]
[1672897003314,0.06432292,13.364,13.36,37.435]
[1672897003525,7.48,13.365,13.361,10.0]
[1672897003839,44.901,13.365,13.364,0.06099953]
[1672897004989,44.901,13.365,13.36,0.06406726]
[1672897005196,7.41,13.361,13.36,0.06406726]
[1672897005414,7.41,13.361,13.359,37.437]
[1672897005830,2.75605379,13.36,13.359,37.437]
[1672897006571,2.75605379,13.36,13.356,10.06869686]
[1672897006886,2.75605379,13.36,13.356,10.0]
[1672897007935,2.75605379,13.36,13.357,37.441]
[1672897008146,2.75605379,13.36,13.358,10.0]
[1672897008884,2.75605379,13.36,13.359,37.438]
[1672897009827,0.06668179,13.364,13.361,37.432]
[1672897010037,7.44,13.365,13.362,10.0]
[1672897010668,7.44,13.365,13.36,10.0]
[1672897010873,37.424,13.364,13.36,10.0]
[1672897011084,7.44,13.365,13.36,10.0]
[1672897012036,7.44,13.365,13.36,47.435]